[Event "TUR-ch Veterans 2020"]
[Site "Antalya-Belek"]
[Date "2020.01.19"]
[Round "1"]
[White "Yilmaz, Turhan"]
[Black "Ozturk, Ali"]
[Result "1-0"]
[ECO "B82"]
[WhiteElo "2132"]
[BlackElo "1560"]
[Annotator "ChessBase"]
[PlyCount "73"]
[EventDate "2020.01.19"]
[EventCountry "TUR"]
[SourceTitle "playchess.com"]
[Source "ChessBase"]
[SourceQuality "1"]
[TimeControl "5400+30"]

1. e4 {[%emt 0:00:30]} c5 {[%emt 0:00:30]} 2. Nf3 {[%emt 0:00:30]} e6 {[%emt 0:00:30]} 3. d4 {[%emt 0:00:30]} cxd4 {[%emt 0:00:00]} 4. Nxd4 {[%emt 0:00:00]} a6 {[%emt 0:00:00]} 5. Nc3 {[%emt 0:00:00]} Qc7 {[%emt 0:00:30]} 6. Bd3 {[%emt 0:00:00]} Nf6 {[%emt 0:00:30]} 7. f4 {[%emt 0:00:00]} d6 {[%emt 0:01:30]} 8. Be3 {[%emt 0:00:30]} Be7 {[%emt 0:00:30]} 9. Qf3 {[%emt 0:00:30]} Nbd7 {[%emt 0:04:30]} 10. g4 {[%emt 0:00:30]} Nc5 {[%emt 0:00:00]} 11. g5 {[%emt 0:00:30]} Nfd7 {[%emt 0:03:00]} 12. O-O-O {[%emt 0:01:30]} b5 {[%emt 0:00:30]} 13. Kb1 {[%emt 0:00:30]} Bb7 {[%emt 0:00:30]} 14. a3 {[%emt 0:00:30]} Nb6 {[%emt 0:04:30]} 15. h4 {[%emt 0:00:30]} d5 {[%emt 0:02:30]} 16. e5 {[%emt 0:01:30]} Nc4 {[%emt 0:04:30]} 17. Bc1 {[%emt 0:02:30]} Nxd3 {[%emt 0:03:30]} 18. Rxd3 {[%emt 0:00:30]} b4 {[%emt 0:00:30]} 19. axb4 {[%emt 0:00:30]} Bxb4 {[%emt 0:00:00]} 20. Na2 {[%emt 0:01:30]} a5 {[%emt 0:11:00]} 21. h5 {[%emt 0:00:30]} Ba6 {[%emt 0:08:30]} 22. g6 {[%emt 0:02:30]} h6 {[%emt 0:02:30]} 23. gxf7+ {[%emt 0:03:30]} Qxf7 {[%emt 0:01:30]} 24. Qh3 {[%emt 0:01:30]} Bc8 {[%emt 0:03:30]} 25. Rg1 {[%emt 0:06:30]} Bc5 {[%emt 0:04:30]} 26. Rg6 {[%emt 0:00:00]} Bxd4 {[%emt 0:01:30]} 27. Rxd4 {[%emt 0:00:00]} Rb8 {[%emt 0:01:30]} 28. Qg3 {[%emt 0:12:30]} Rg8 {[%emt 0:05:30]} 29. b3 {[%emt 0:06:30]} a4 {[%emt 0:04:30]} 30. b4 {[%emt 0:00:30]} a3 {[%emt 0:05:30]} 31. f5 {[%emt 0:09:30]} Qa7 {[%emt 0:05:30]} 32. Rdg4 {[%emt 0:04:30]} Rb7 {[%emt 0:08:23]} 33. f6 {[%emt 0:01:30]} Qb8 {[%emt 0:01:33]} 34. Rxg7 {[%emt 0:00:30]} Rf8 {[%emt 0:00:30]} 35. Rg8 {[%emt 0:13:30]} Rxb4+ {[%emt 0:12:06]} 36. Nxb4 {[%emt 0:00:30]} Qxb4+ {[%emt 0:00:35]} 37. Ka2 {[%emt 0:00:00]} 1-0

[Event "TUR-ch Veterans 2020"]
[Site "Antalya-Belek"]
[Date "2020.01.19"]
[Round "1"]
[White "Pekun, Cem"]
[Black "Akinci, Ahmet"]
[Result "1-0"]
[ECO "B31"]
[WhiteElo "2061"]
[BlackElo "1355"]
[Annotator "NA"]
[PlyCount "117"]
[EventDate "2020.01.19"]
[EventCountry "TUR"]
[SourceTitle "playchess.com"]
[Source "ChessBase"]
[SourceQuality "1"]
[TimeControl "5400+30"]

1. e4 {[%emt 0:00:30]} c5 {[%emt 0:02:30]} 2. Nf3 {[%emt 0:00:30]} Nc6 {[%emt 0:00:30]} 3. Bb5 {[%emt 0:00:30]} g6 {[%emt 0:05:30]} 4. O-O {[%emt 0:01:30]} Bg7 {[%emt 0:00:30]} 5. Re1 {[%emt 0:00:30]} a6 {[%emt 0:01:30]} 6. Bxc6 {[%emt 0:00:30]} bxc6 {[%emt 0:00:00]} 7. h3 {[%emt 0:01:30] B31: Sicilian: 2...Nc6 3 Bb5 g6} (7. d3 e5 8. c3 d6 9. d4 cxd4 10. cxd4 exd4 11. e5 dxe5 12. Nxe5 Be6 13. Nxc6 Qb6 14. Qa4 Qb5 15. Qxb5 axb5 {½-½ (41) Timman,J (2630)-Ljubojevic,L (2625) Hilversum 1987}) 7... e6 $146 {[%emt 0:01:00]} ({Predecessor:} 7... Nf6 8. Nc3 O-O 9. d3 d6 10. Bg5 e5 11. Na4 Rb8 12. c3 Qa5 13. Bd2 Qc7 14. Rc1 Be6 {½-½ (36) Krokay,U (1876)-Zurkiewicz,K Wroclaw 2013}) 8. d3 {[%emt 0:06:30]} Rb8 {[%emt 0:00:30]} 9. c3 {[%emt 0:01:30]} d5 {[%emt 0:00:30]} 10. Qc2 {[%emt 0:05:30]} Qb6 {[%emt 0:01:30]} 11. Nbd2 {[%emt 0:04:30]} a5 {[%emt 0:04:30]} 12. Rb1 {[%emt 0:05:30]} Nf6 {[%emt 0:02:30]} 13. Nb3 {[%emt 0:04:30]} Ba6 {[%emt 0:02:30]} 14. Be3 {[%emt 0:16:30]} Nd7 {[%emt 0:00:30]} 15. d4 {[%emt 0:02:30]} cxd4 {[%emt 0:03:30]} 16. cxd4 {[%emt 0:11:30]} O-O {[%emt 0:06:30]} 17. Bf4 {[%emt 0:02:30]} Rbc8 {[%emt 0:00:30]} 18. Nc5 {[%emt 0:00:30]} Nxc5 {[%emt 0:02:30]} 19. dxc5 {[%emt 0:00:30]} Qb5 {[%emt 0:01:30]} 20. Bd6 {[%emt 0:02:30]} Rfd8 {[%emt 0:00:30]} 21. e5 {[%emt 0:00:00]} Re8 {[%emt 0:03:30]} 22. Re3 {[%emt 0:03:00]} Qc4 {[%emt 0:03:30]} 23. Qxc4 {[%emt 0:03:30]} Bxc4 {[%emt 0:00:30]} 24. b3 {[%emt 0:00:30]} Ba6 {[%emt 0:00:30]} 25. Nd4 {[%emt 0:02:30]} Bh6 {[%emt 0:02:30]} 26. Rf3 {[%emt 0:02:30]} Kg7 {[%emt 0:02:30]} 27. a3 {[%emt 0:01:30]} Bg5 {[%emt 0:00:30]} 28. b4 {[%emt 0:00:30]} f6 {[%emt 0:13:30]} 29. bxa5 {[%emt 0:00:30]} fxe5 {[%emt 0:02:30]} 30. Bxe5+ {[%emt 0:00:39]} Kg8 {[%emt 0:00:30]} 31. Rb6 {[%emt 0:00:30]} Bb5 {[%emt 0:00:30]} 32. a6 {[%emt 0:00:30]} Bd8 {[%emt 0:00:30]} 33. Rb7 {[%emt 0:00:30]} Re7 {[%emt 0:00:30]} 34. Bd6 {[%emt 0:00:30]} Bxa6 {[%emt 0:00:30]} 35. Rxe7 {[%emt 0:00:30]} Bxe7 {[%emt 0:00:30]} 36. Bxe7 {[%emt 0:00:30]} e5 {[%emt 0:05:30]} 37. Nc2 {[%emt 0:12:11]} d4 {[%emt 0:02:30]} 38. Bd6 {[%emt 0:01:53]} Be2 $18 {[%emt 0:04:30]} (38... d3 $16) 39. Rb3 {[%emt 0:02:35]} Bd1 {[%emt 0:00:00]} 40. Rb2 {[%emt 0:00:23]} Bxc2 {[%emt 0:00:00]} 41. Rxc2 {[%emt 0:00:03]} d3 {[%emt 0:03:30]} 42. Rd2 {[%emt 0:00:50]} e4 {[%emt 0:00:30]} 43. f3 {[%emt 0:00:00]} Ra8 {[%emt 0:03:30]} 44. fxe4 {[%emt 0:00:02]} Rxa3 {[%emt 0:00:30]} 45. Kf2 {[%emt 0:00:09]} Kf7 {[%emt 0:00:56]} 46. Ke3 {[%emt 0:00:07]} Ke6 {[%emt 0:00:42]} 47. Rxd3 {[%emt 0:00:02]} Ra2 {[%emt 0:00:00]} 48. Kf3 {[%emt 0:00:19]} Rc2 {[%emt 0:01:33]} 49. Rb3 {[%emt 0:00:11]} h6 {[%emt 0:00:47]} 50. Rb7 {[%emt 0:00:49]} h5 {[%emt 0:02:47]} 51. Re7+ {[%emt 0:00:42]} Kf6 {[%emt 0:00:11]} 52. e5+ {[%emt 0:00:26]} Kf5 {[%emt 0:00:54]} 53. Rf7+ {[%emt 0:01:12]} Ke6 {[%emt 0:04:30]} 54. Rf6+ {[%emt 0:00:07]} Kd7 {[%emt 0:00:08]} 55. e6+ {[%emt 0:00:29]} Kc8 {[%emt 0:00:22]} 56. Rf8+ {[%emt 0:00:30]} Kb7 {[%emt 0:00:12]} 57. e7 {[%emt 0:00:49]} Rc3+ {[%emt 0:00:15]} 58. Ke2 {[%emt 0:00:31]} Rc2+ {[%emt 0:00:15]} 59. Kd1 {[%emt 0:00:20]} 1-0

[Event "TUR-ch Veterans 2020"]
[Site "Antalya-Belek"]
[Date "2020.01.19"]
[Round "1"]
[White "Cetinkaya, Vedat Ali"]
[Black "Civi, Nevfel"]
[Result "1-0"]
[ECO "E51"]
[WhiteElo "2026"]
[BlackElo "1594"]
[Annotator "NA"]
[PlyCount "85"]
[EventDate "2020.01.19"]
[EventCountry "TUR"]
[SourceTitle "playchess.com"]
[Source "ChessBase"]
[SourceQuality "1"]
[TimeControl "5400+30"]

1. d4 {[%emt 0:00:30]} Nf6 {[%emt 0:00:30]} 2. c4 {[%emt 0:00:00]} e6 {[%emt 0:00:30]} 3. Nf3 {[%emt 0:00:00]} d5 {[%emt 0:00:30]} 4. e3 {[%emt 0:00:30]} Nc6 {[%emt 0:01:30]} 5. Nc3 {[%emt 0:01:30]} Bb4 {[%emt 0:00:30]} 6. Bd3 {[%emt 0:00:30]} a6 {[%emt 0:01:30]} 7. O-O {[%emt 0:00:30]} O-O {[%emt 0:00:30]} 8. Qe2 {[%emt 0:00:30]} Be7 $146 {[%emt 0:01:30] E51: Nimzo-Indian: Rubinstein: 4...0-0 5 Nf3 d5} ({Predecessor:} 8... dxc4 9. Bxc4 Bd6 10. Rd1 Qe8 11. e4 e5 12. Bg5 Ng4 13. h3 exd4 14. Nd5 Nge5 15. Nxe5 Nxe5 16. Rxd4 Nxc4 17. Qxc4 b5 18. Qc3 c5 19. Rd3 c4 20. Re3 Be5 21. Ne7+ Qxe7 22. Bxe7 Bxc3 23. bxc3 {½-½ (23) Nguyen,A (2551)-Kostenko,P (2481) Jodhpur 2003}) 9. Rd1 {[%emt 0:00:30]} Nb4 {[%emt 0:00:30]} 10. Bb1 {[%emt 0:00:30]} b6 {[%emt 0:01:30]} 11. e4 {[%emt 0:00:30]} Bb7 {[%emt 0:02:30]} 12. cxd5 {[%emt 0:02:30]} exd5 {[%emt 0:00:30]} 13. e5 {[%emt 0:00:30]} Ne8 {[%emt 0:08:30]} 14. a3 {[%emt 0:08:30]} Nc6 {[%emt 0:03:30]} 15. Qc2 {[%emt 0:00:30]} g6 {[%emt 0:01:30]} 16. Bh6 {[%emt 0:00:30]} Ng7 {[%emt 0:00:30]} 17. Ba2 {[%emt 0:00:30]} Na7 {[%emt 0:00:30]} 18. Qd2 {[%emt 0:02:30]} Re8 {[%emt 0:01:30]} 19. Bg5 {[%emt 0:03:30]} Ne6 {[%emt 0:02:30]} 20. Bh6 {[%emt 0:03:30]} Nb5 {[%emt 0:04:30]} 21. Ne2 {[%emt 0:01:30]} Rb8 {[%emt 0:02:30]} 22. Rac1 {[%emt 0:01:30]} Rc8 {[%emt 0:00:30]} 23. Ne1 {[%emt 0:04:30]} Bg5 {[%emt 0:01:30]} 24. Bxg5 {[%emt 0:00:30]} Qxg5 {[%emt 0:01:30]} 25. f4 {[%emt 0:03:30]} Qh6 {[%emt 0:03:30]} 26. a4 {[%emt 0:03:30]} Na7 {[%emt 0:01:30]} 27. Rc3 {[%emt 0:00:30]} c6 {[%emt 0:02:30]} 28. Rh3 {[%emt 0:00:30]} Qf8 {[%emt 0:01:30]} 29. f5 {[%emt 0:01:30]} gxf5 {[%emt 0:01:30]} 30. Bb1 {[%emt 0:00:30]} Rc7 {[%emt 0:04:30]} 31. Bxf5 {[%emt 0:01:30]} f6 {[%emt 0:00:00]} 32. Rh6 {[%emt 0:00:30]} Rf7 {[%emt 0:02:00]} 33. Nf3 {[%emt 0:07:30]} Ree7 {[%emt 0:04:30]} 34. Rf1 {[%emt 0:06:30]} Bc8 {[%emt 0:00:30]} 35. Ng3 {[%emt 0:07:30]} Ng5 {[%emt 0:02:30]} 36. Rxf6 {[%emt 0:03:30]} Ne4 $18 {[%emt 0:02:30]} 37. Bxe4 {[%emt 0:02:30]} Rxf6 {[%emt 0:00:30]} 38. exf6 {[%emt 0:00:30]} Rxe4 {[%emt 0:01:30]} 39. Nxe4 {[%emt 0:00:30]} dxe4 {[%emt 0:00:30]} 40. Qg5+ {[%emt 0:00:30]} Kh8 {[%emt 0:00:30]} 41. Ne5 {[%emt 0:00:30]} Be6 {[%emt 0:01:30]} 42. f7 {[%emt 0:00:30]} c5 {[%emt 0:02:30]} 43. Qf6+ {[%emt 0:00:30]} 1-0

[Event "TUR-ch Veterans 2020"]
[Site "Antalya-Belek"]
[Date "2020.01.19"]
[Round "1"]
[White "Yuksel, Mustafa"]
[Black "Emec, Sedat"]
[Result "1-0"]
[ECO "B06"]
[WhiteElo "2004"]
[BlackElo "1315"]
[Annotator "NA"]
[PlyCount "65"]
[EventDate "2020.01.19"]
[EventCountry "TUR"]
[SourceTitle "playchess.com"]
[Source "ChessBase"]
[SourceQuality "1"]
[TimeControl "5400+30"]

1. d4 {[%emt 0:00:30]} d6 {[%emt 0:00:30]} 2. Nc3 {[%emt 0:00:00]} g6 {[%emt 0:00:30]} 3. e4 {[%emt 0:01:00]} e6 {[%emt 0:00:30]} 4. f4 {[%emt 0:00:30]} f5 {[%emt 0:00:30]} 5. exf5 {[%emt 0:00:30]} exf5 {[%emt 0:00:30]} 6. Nf3 {[%emt 0:00:30]} Bg7 {[%emt 0:00:30]} 7. Bc4 {[%emt 0:00:30]} Nf6 {[%emt 0:01:30]} 8. O-O {[%emt 0:01:30]} d5 {[%emt 0:00:30]} 9. Re1+ {[%emt 0:00:00]} Kf8 {[%emt 0:02:30]} 10. Bb3 {[%emt 0:05:00]} c6 {[%emt 0:00:30]} 11. Ne5 {[%emt 0:08:30]} Ne4 {[%emt 0:01:30]} 12. Nxe4 {[%emt 0:00:30]} fxe4 {[%emt 0:00:30]} 13. Be3 {[%emt 0:00:30]} Bxe5 {[%emt 0:02:30]} 14. fxe5 {[%emt 0:01:30]} Kg7 {[%emt 0:01:30]} 15. Rf1 {[%emt 0:09:30]} Rf8 {[%emt 0:01:30]} 16. Qd2 {[%emt 0:00:30]} Rf5 {[%emt 0:02:30]} 17. g4 {[%emt 0:06:30]} Rxf1+ {[%emt 0:01:30]} 18. Rxf1 {[%emt 0:00:30]} Bxg4 {[%emt 0:00:30]} 19. Bh6+ {[%emt 0:00:30]} Kg8 {[%emt 0:01:30]} 20. Rf8+ {[%emt 0:00:30]} Qxf8 {[%emt 0:00:30]} 21. Bxf8 {[%emt 0:00:30]} Kxf8 {[%emt 0:00:30]} 22. Qg5 {[%emt 0:00:30]} Bf5 {[%emt 0:02:30]} 23. Qf6+ {[%emt 0:01:30]} Kg8 {[%emt 0:01:30]} 24. e6 {[%emt 0:00:00]} Na6 {[%emt 0:01:30]} 25. Qf7+ {[%emt 0:00:00]} Kh8 {[%emt 0:00:30]} 26. e7 {[%emt 0:00:30]} h5 {[%emt 0:03:30]} 27. e8=Q+ {[%emt 0:00:30]} Rxe8 {[%emt 0:01:30]} 28. Qxe8+ {[%emt 0:00:00]} Kg7 {[%emt 0:01:30]} 29. Qe7+ {[%emt 0:00:00]} Kh6 {[%emt 0:00:30]} 30. Qxb7 {[%emt 0:00:00]} e3 {[%emt 0:01:30]} 31. Qxa6 {[%emt 0:00:00]} Bg4 {[%emt 0:00:30]} 32. Qxc6 {[%emt 0:00:30]} e2 {[%emt 0:01:30]} 33. Kf2 {[%emt 0:00:30]} 1-0

[Event "TUR-ch Veterans 2020"]
[Site "Antalya-Belek"]
[Date "2020.01.19"]
[Round "1"]
[White "Tozaki, Halil"]
[Black "Sahin, Ali Haydar"]
[Result "1-0"]
[ECO "A62"]
[WhiteElo "1880"]
[BlackElo "1329"]
[Annotator "NA"]
[PlyCount "91"]
[EventDate "2020.01.19"]
[EventCountry "TUR"]
[SourceTitle "playchess.com"]
[Source "ChessBase"]
[SourceQuality "1"]
[TimeControl "5400+30"]

1. d4 {[%emt 0:00:30]} Nf6 {[%emt 0:00:30]} 2. Nf3 {[%emt 0:00:00]} g6 {[%emt 0:00:30]} 3. c4 {[%emt 0:00:00]} c5 {[%emt 0:00:30]} 4. Nc3 {[%emt 0:00:30]} e6 {[%emt 0:00:30]} 5. g3 {[%emt 0:00:30]} Na6 {[%emt 0:01:30]} 6. Bg2 {[%emt 0:00:30]} Bg7 {[%emt 0:00:00]} 7. O-O {[%emt 0:00:30]} O-O {[%emt 0:00:00]} 8. d5 {[%emt 0:05:30]} exd5 {[%emt 0:00:30]} 9. cxd5 {[%emt 0:00:30]} d6 {[%emt 0:00:30]} 10. e4 {[%emt 0:00:30]} Re8 {[%emt 0:00:30]} 11. Nd2 {[%emt 0:01:30]} Nc7 {[%emt 0:01:30]} 12. a4 {[%emt 0:00:30]} Na6 {[%emt 0:06:30]} 13. Nc4 {[%emt 0:01:30]} Nc7 {[%emt 0:03:30]} 14. Bf4 {[%emt 0:00:30]} Bf8 {[%emt 0:01:30]} 15. e5 {[%emt 0:05:30]} Nh5 {[%emt 0:01:30]} 16. exd6 {[%emt 0:00:30]} Nxf4 {[%emt 0:00:30]} 17. dxc7 {[%emt 0:00:30]} Qxc7 {[%emt 0:01:30]} 18. d6 {[%emt 0:01:30]} Bxd6 {[%emt 0:05:30]} 19. Qxd6 {[%emt 0:01:30]} Qxd6 {[%emt 0:00:30]} 20. Nxd6 {[%emt 0:00:30]} Nh3+ {[%emt 0:00:00]} 21. Kh1 {[%emt 0:01:30]} Rd8 {[%emt 0:07:00]} 22. Nxc8 {[%emt 0:00:30]} Ng5 {[%emt 0:00:30]} 23. Ne7+ {[%emt 0:01:30]} Kf8 {[%emt 0:01:30]} 24. Ned5 {[%emt 0:00:30]} Ne6 {[%emt 0:00:30]} 25. Rfe1 {[%emt 0:00:30]} Rab8 {[%emt 0:01:30]} 26. Rad1 {[%emt 0:00:30]} a6 {[%emt 0:01:30]} 27. Nb6 {[%emt 0:01:30]} Nd4 {[%emt 0:00:30]} 28. h4 {[%emt 0:02:30]} Rd6 {[%emt 0:01:30]} 29. Ncd5 {[%emt 0:00:30]} Rbd8 {[%emt 0:01:30]} 30. Rc1 {[%emt 0:00:30]} Rc6 {[%emt 0:02:30]} 31. Rc3 {[%emt 0:02:30]} Rdd6 {[%emt 0:00:30]} 32. a5 {[%emt 0:02:30]} Nb5 {[%emt 0:02:30]} 33. Rce3 {[%emt 0:00:30]} Nc7 {[%emt 0:02:30]} 34. Nc3 {[%emt 0:01:30]} Rxb6 {[%emt 0:00:30]} 35. axb6 {[%emt 0:00:30]} Rxb6 {[%emt 0:00:30]} 36. R1e2 {[%emt 0:00:30]} Ne6 {[%emt 0:00:30]} 37. Re5 {[%emt 0:01:30]} Rb4 {[%emt 0:01:30]} 38. Bd5 {[%emt 0:01:30]} Nd4 {[%emt 0:00:30]} 39. Re8+ {[%emt 0:01:30]} Kg7 {[%emt 0:00:30]} 40. R2e7 {[%emt 0:01:30]} Rxb2 {[%emt 0:00:30]} 41. Rxf7+ {[%emt 0:01:30]} Kh6 {[%emt 0:00:00]} 42. Ree7 {[%emt 0:00:30]} Kh5 {[%emt 0:00:00]} 43. Rxb7 {[%emt 0:06:30]} Rc2 {[%emt 0:01:30]} 44. Ne4 {[%emt 0:01:30]} Kg4 {[%emt 0:01:30]} 45. Rf4+ {[%emt 0:01:30]} Kh3 {[%emt 0:00:30]} 46. Ng5# {[%emt 0:00:30]} 1-0

[Event "TUR-ch Veterans 2020"]
[Site "Antalya-Belek"]
[Date "2020.01.19"]
[Round "1"]
[White "Tasan, Mehmet Askin"]
[Black "Tepeli, Huseyin"]
[Result "1-0"]
[ECO "B12"]
[WhiteElo "1877"]
[BlackElo "1435"]
[Annotator "NA"]
[PlyCount "53"]
[EventDate "2020.01.19"]
[EventCountry "TUR"]
[SourceTitle "playchess.com"]
[Source "ChessBase"]
[SourceQuality "1"]
[TimeControl "5400+30"]

1. e4 {[%emt 0:00:30]} c6 {[%emt 0:00:30]} 2. d4 {[%emt 0:00:30]} d5 {[%emt 0:00:00]} 3. e5 {[%emt 0:00:00]} Bf5 {[%emt 0:00:00]} 4. Ne2 {[%emt 0:00:00]} e6 {[%emt 0:00:30]} 5. Ng3 {[%emt 0:00:30]} Bg6 {[%emt 0:00:30]} 6. h4 {[%emt 0:00:00]} h6 {[%emt 0:01:30]} 7. h5 {[%emt 0:00:00]} Bh7 {[%emt 0:00:00]} 8. Bd3 {[%emt 0:01:30]} Bxd3 {[%emt 0:00:00]} 9. cxd3 {[%emt 0:00:30]} Qb6 {[%emt 0:00:30]} 10. Rh4 {[%emt 0:03:30]} Nd7 {[%emt 0:07:30]} 11. Nc3 {[%emt 0:01:30]} O-O-O {[%emt 0:00:30]} 12. Na4 {[%emt 0:05:30]} Qa5+ {[%emt 0:03:30]} 13. Bd2 {[%emt 0:01:30]} Bb4 {[%emt 0:00:30]} 14. Nc3 {[%emt 0:00:00]} Qa6 {[%emt 0:03:30]} 15. Qf3 {[%emt 0:05:00]} f5 {[%emt 0:00:30]} 16. Nge2 {[%emt 0:04:30]} Ne7 {[%emt 0:02:30]} 17. a3 {[%emt 0:01:30]} c5 {[%emt 0:04:30]} 18. Rc1 {[%emt 0:00:30]} Ba5 {[%emt 0:01:30]} 19. b4 {[%emt 0:01:30]} Bc7 {[%emt 0:00:30]} 20. bxc5 {[%emt 0:01:30]} Nc6 {[%emt 0:03:30]} 21. Rh3 {[%emt 0:03:30]} Qxa3 {[%emt 0:01:30]} 22. Nb5 {[%emt 0:01:30]} Qb3 {[%emt 0:01:30]} 23. Nec3 {[%emt 0:01:30]} Qb4 {[%emt 0:20:30]} 24. Nxc7 {[%emt 0:03:30]} Nxd4 {[%emt 0:00:30]} 25. Qf4 {[%emt 0:04:30]} Nxc5 {[%emt 0:09:30]} 26. Nxe6 {[%emt 0:09:30]} Ncb3 {[%emt 0:03:30]} 27. Nxd5+ {[%emt 0:01:30]} 1-0

[Event "TUR-ch Veterans 2020"]
[Site "Antalya-Belek"]
[Date "2020.01.19"]
[Round "1"]
[White "Oney, Gulumser"]
[Black "Buker, Muhittin"]
[Result "0-1"]
[ECO "A07"]
[WhiteElo "1555"]
[BlackElo "2008"]
[Annotator "NA"]
[PlyCount "74"]
[EventDate "2020.01.19"]
[EventCountry "TUR"]
[SourceTitle "playchess.com"]
[Source "ChessBase"]
[SourceQuality "1"]
[TimeControl "5400+30"]

1. Nf3 {[%emt 0:00:30]} Nf6 {[%emt 0:00:30]} 2. g3 {[%emt 0:00:00]} d5 {[%emt 0:00:30]} 3. Bg2 {[%emt 0:00:00]} Bg4 {[%emt 0:00:00]} 4. d3 {[%emt 0:00:30]} Nbd7 {[%emt 0:00:00]} 5. O-O {[%emt 0:02:30]} e5 {[%emt 0:00:00]} 6. Nbd2 {[%emt 0:02:30]} Bd6 {[%emt 0:00:00] A07: Réti Opening: New York and Capablanca Systems} (6... c6 7. h3 Bh5 8. Qe1 Bc5 9. Nh4 O-O 10. g4 Bg6 11. e3 Re8 12. Nxg6 hxg6 13. c4 Nf8 14. Nb3 Bb6 15. cxd5 cxd5 {1-0 (36) Almasi,Z (2721)-Shirov,A (2735) Warsaw 2010}) 7. Re1 {[%emt 0:04:30]} O-O {[%emt 0:00:30]} 8. e4 {[%emt 0:06:30]} d4 $146 {[%emt 0:00:30]} ({Predecessor:} 8... dxe4 9. Nxe4 Nxe4 10. Rxe4 Nf6 11. Re1 Re8 12. Bg5 h6 13. Bxf6 Qxf6 14. h3 {0-1 (48) Pavlova,N (1990)-Potapova,M (2060) Sochi 2016}) 9. h3 {[%emt 0:07:30]} Bxf3 {[%emt 0:00:30]} 10. Nxf3 {[%emt 0:03:30]} c5 {[%emt 0:00:30]} 11. Nh4 {[%emt 0:01:30]} g6 {[%emt 0:00:30]} 12. Bg5 {[%emt 0:06:30]} Qc7 {[%emt 0:00:30]} 13. Qd2 {[%emt 0:03:30]} Rac8 {[%emt 0:00:30]} 14. Rf1 {[%emt 0:02:30]} Nh5 {[%emt 0:03:30]} 15. Bf3 {[%emt 0:03:30]} Ng7 {[%emt 0:00:00]} 16. Bh6 {[%emt 0:04:30]} c4 {[%emt 0:01:00]} 17. dxc4 {[%emt 0:14:30]} Qxc4 {[%emt 0:00:30]} 18. Nf5 {[%emt 0:04:30]} Bb4 {[%emt 0:10:30]} 19. c3 {[%emt 0:04:30]} dxc3 {[%emt 0:00:30]} 20. bxc3 {[%emt 0:13:25]} Bxc3 {[%emt 0:11:30]} 21. Qxd7 {[%emt 0:05:32]} gxf5 {[%emt 0:00:30]} 22. exf5 {[%emt 0:05:41]} (22. Rad1 $14) 22... e4 {[%emt 0:02:30]} 23. Qe7 {[%emt 0:01:15]} exf3 {[%emt 0:05:30]} 24. Qg5 {[%emt 0:01:06]} Qd4 {[%emt 0:00:30]} 25. Rad1 {[%emt 0:00:24]} Qf6 {[%emt 0:00:30]} 26. Qxf6 {[%emt 0:00:35]} Bxf6 {[%emt 0:00:00]} 27. Rd6 {[%emt 0:00:18]} Rc6 $19 {[%emt 0:00:00]} 28. Rxc6 {[%emt 0:00:19]} bxc6 {[%emt 0:00:30]} 29. g4 {[%emt 0:00:17]} Rc8 {[%emt 0:00:30]} 30. Rc1 {[%emt 0:00:14]} Bd4 {[%emt 0:01:30]} 31. Rc4 {[%emt 0:00:44]} c5 {[%emt 0:00:00]} 32. Rc2 {[%emt 0:00:00]} f6 {[%emt 0:00:00]} 33. Bf4 {[%emt 0:00:38]} Ne8 {[%emt 0:00:30]} 34. Kf1 {[%emt 0:00:46]} Nc7 {[%emt 0:00:30]} 35. Ke1 {[%emt 0:00:30]} Nd5 {[%emt 0:00:00]} 36. Bg3 {[%emt 0:00:23]} Bc3+ {[%emt 0:00:00]} 37. Kd1 {[%emt 0:00:48]} Re8 {[%emt 0:00:30]} 0-1

[Event "TUR-ch Veterans 2020"]
[Site "Antalya-Belek"]
[Date "2020.01.19"]
[Round "1"]
[White "Saglam, Sami"]
[Black "Kocak, Sabri"]
[Result "0-1"]
[ECO "C45"]
[WhiteElo "1407"]
[BlackElo "2086"]
[Annotator "NA"]
[PlyCount "98"]
[EventDate "2020.01.19"]
[EventCountry "TUR"]
[SourceTitle "playchess.com"]
[Source "ChessBase"]
[SourceQuality "1"]
[TimeControl "5400+30"]

1. e4 {[%emt 0:00:30]} e5 {[%emt 0:00:30]} 2. Nf3 {[%emt 0:00:30]} Nc6 {[%emt 0:00:00]} 3. d4 {[%emt 0:01:30]} exd4 {[%emt 0:01:00]} 4. Nxd4 {[%emt 0:00:30]} Nf6 {[%emt 0:00:00]} 5. Nxc6 {[%emt 0:02:30]} bxc6 {[%emt 0:00:00]} 6. Bd3 {[%emt 0:00:30]} d5 {[%emt 0:14:30]} 7. e5 {[%emt 0:01:30]} Ng4 {[%emt 0:01:30]} 8. Bf4 {[%emt 0:02:30]} ({Predecessor:} 8. Qe2 Bc5 9. O-O Qe7 10. Bf4 g5 11. Bg3 h5 12. h3 h4 13. Bh2 Nxh2 14. Kxh2 g4 15. hxg4 Qg5 16. f4 Qxg4 {0-1 (44) Jakaityte,R (1980)-Sibajeva,M (1655) Lithuania 2014}) 8... Bc5 {[%emt 0:04:30]} 9. O-O {[%emt 0:00:30]} g5 {[%emt 0:01:30] C45: Scotch Game} 10. Bg3 $146 {[%emt 0:00:30]} (10. Bd2 O-O 11. Nc3 Nxe5 12. Qh5 Nxd3 13. cxd3 f6 14. Rac1 Bf5 15. Rfe1 Bxd3 16. Qh3 Bg6 17. Qe6+ {½-½ (57) Vachier Lagrave,M (2789)-Anand,V (2759) Paris 2018}) 10... h5 {[%emt 0:00:30]} 11. h3 {[%emt 0:01:30]} h4 {[%emt 0:00:30]} 12. Bh2 {[%emt 0:00:30]} Nxh2 {[%emt 0:03:30]} 13. Kxh2 {[%emt 0:00:30]} g4 {[%emt 0:02:30]} 14. hxg4 {[%emt 0:04:30]} Qg5 {[%emt 0:01:30]} 15. f4 {[%emt 0:01:30]} Qxg4 {[%emt 0:01:30]} 16. Qxg4 {[%emt 0:01:30]} Bxg4 {[%emt 0:00:30]} 17. Nd2 {[%emt 0:00:30]} a5 {[%emt 0:02:30]} 18. f5 {[%emt 0:03:30]} Be3 {[%emt 0:18:30]} 19. Nf3 {[%emt 0:01:30]} Bf4+ {[%emt 0:00:30]} 20. Kg1 {[%emt 0:02:30]} h3 {[%emt 0:01:30]} 21. Kf2 {[%emt 0:02:30]} hxg2 {[%emt 0:02:30]} 22. Rg1 {[%emt 0:00:30]} Rh3 {[%emt 0:07:30]} 23. Be2 {[%emt 0:00:30]} Bxf5 {[%emt 0:02:30]} 24. Rxg2 {[%emt 0:00:30]} Ke7 {[%emt 0:02:30]} 25. Nd4 {[%emt 0:03:30]} Be3+ {[%emt 0:00:30]} 26. Ke1 {[%emt 0:00:30]} Rh1+ {[%emt 0:01:30]} 27. Bf1 {[%emt 0:01:30]} Bxd4 {[%emt 0:00:30]} 28. Ke2 {[%emt 0:02:30]} Rah8 {[%emt 0:01:30]} 29. c3 {[%emt 0:01:30]} Bxe5 {[%emt 0:03:30]} 30. Rf2 {[%emt 0:00:30]} Bc8 {[%emt 0:01:30]} 31. Kd3 {[%emt 0:00:30]} Ba6+ {[%emt 0:00:00]} 32. Kc2 {[%emt 0:00:30]} Rxf1 {[%emt 0:01:00]} 33. Rfxf1 {[%emt 0:00:30]} Bxf1 {[%emt 0:00:30]} 34. Rxf1 {[%emt 0:00:30]} Ke6 {[%emt 0:00:00]} 35. Kb3 {[%emt 0:02:30]} Rb8+ {[%emt 0:01:00]} 36. Ka3 {[%emt 0:00:00]} Bd6+ {[%emt 0:00:30]} 37. b4 {[%emt 0:00:00]} axb4+ {[%emt 0:00:30]} 38. Kb3 {[%emt 0:00:30]} bxc3+ {[%emt 0:00:30]} 39. Kxc3 {[%emt 0:00:00]} Be5+ {[%emt 0:00:30]} 40. Kd3 {[%emt 0:00:00]} Ra8 {[%emt 0:00:00]} 41. Rc1 {[%emt 0:00:30]} Kd6 {[%emt 0:00:00]} 42. Rc2 {[%emt 0:01:30]} c5 {[%emt 0:01:30]} 43. Kd2 {[%emt 0:00:30]} c4 {[%emt 0:00:30]} 44. Ke3 {[%emt 0:00:30]} Ra3+ {[%emt 0:00:30]} 45. Ke2 {[%emt 0:00:30]} f5 {[%emt 0:00:30]} 46. Kf2 {[%emt 0:00:30]} Rh3 {[%emt 0:01:30]} 47. Kg1 {[%emt 0:00:00]} Rc3 {[%emt 0:00:30]} 48. Re2 {[%emt 0:01:00]} d4 {[%emt 0:00:30]} 49. Kg2 {[%emt 0:00:30]} d3 {[%emt 0:01:30]} 0-1